Cogmind - Beta 10.2 @@@ ROGUE MODE // 2021.05.05 @ 17:20:01 Player: Trantor Result: Destroyed by D-53 Grenadier with Mini Grenade Launcher Performance ------------- Evolutions (1) 500 Regions Visited (3) 600 Robots Destroyed (73) 365 Value Destroyed (2177) 2177 Prototype IDs (4) 80 Alien Tech Used (0) 0 Bonus (84) 84 TOTAL SCORE: 3806 Bonus ------- High Alert Combat Kills 84 Cogmind --------- Core Integrity 0/400 Matter 287/300 Energy 280/280 System Corruption 1% Temperature Cool (0) Movement Core (800) Ox15 Location -9/Mines Parts ------- > --- POWER (1) -------- Cooled Ion Engine > --- PROPULSION (2) --- (None) > --- UTILITY (4) ------ High-capacity Storage Unit Improved Signal Interpreter Hacking Suite > --- WEAPON (2) ------- Improved Light Cannon Flail > --- INVENTORY (12) --- Improved Ion Engine Improved Ion Engine Cooled Ion Engine Light Treads Light Treads Light Armor Plating Light Armor Plating Rocket Launcher Mini Grenade Launcher Peak State ------------ > --- POWER ------------ Improved Ion Engine > --- PROPULSION ------- Light Treads Light Treads > --- UTILITY ---------- High-capacity Storage Unit Light Armor Plating Hacking Suite Hacking Suite > --- WEAPON ----------- Improved Light Cannon Improved Light Cannon > --- INVENTORY -------- Ion Engine Improved Ion Engine Light Treads Aluminum Leg Aluminum Leg Hacking Suite EM Pulse Gun Improved Light Cannon Improved Light Cannon Rocket Launcher Mini Grenade Launcher Flail [Rating: 18] Favorites ----------- Power Improved Ion Engine Engine Improved Ion Engine Propulsion Light Treads Treads Light Treads Wheel Wheel Utility Hacking Suite Storage High-capacity Storage Unit Processor Improved Signal Interpreter Hackware Hacking Suite Protection Light Armor Plating Weapon Improved Light Cannon Energy Gun Small Laser Ballistic Gun Assault Rifle Ballistic Cannon Improved Light Cannon Launcher Mini Grenade Launcher Impact Weapon Flail Build | -11 -10 -9 -9 ------- Run | Scr Mat Mat Min Slots Evolved 2 | . . 2 . Power . | . . . . Propulsion . | . . . . Utility 2 | . . 2 . Weapon . | . . . . Parts Attached 56 | 9 15 29 3 Power 8 | 1 2 5 . Engine 8 | 1 2 5 . Core . | . . . . Reactor . | . . . . Propulsion 17 | 4 3 10 . Treads 14 | 1 3 10 . Leg . | . . . . Wheel 3 | 3 . . . Hover . | . . . . Flight . | . . . . Utility 13 | 1 4 7 1 Device . | . . . . Storage 4 | 1 2 1 . Processor 1 | . . 1 . Hackware 3 | . 1 2 . Protection 5 | . 1 3 1 Artifact . | . . . . Weapon 18 | 3 6 7 2 Energy Gun 8 | 3 3 2 . Energy Cannon . | . . . . Ballistic Gun 2 | . 1 1 . Ballistic Cannon 4 | . 2 2 . Launcher 2 | . . 1 1 Special Weapon . | . . . . Impact Weapon 2 | . . 1 1 Slashing Weapon . | . . . . Piercing Weapon . | . . . . Special Melee Weapon . | . . . . Unidentified Prototypes . | . . . . Parts Lost 19 | . 4 12 3 Power 2 | . 1 1 . Propulsion 6 | . . 4 2 Utility 5 | . 1 3 1 Weapon 6 | . 2 4 . Highest Loss Streak 4 | . 1 4 3 Average Slot Usage (%) 94 | . 95 93 98 Engine 11 | . 13 10 11 Treads 23 | . 26 21 21 Storage 12 | . 14 11 11 Processor 4 | . . 7 11 Hackware 13 | . 8 17 11 Protection 3 | . 1 4 10 Energy Gun 3 | . 8 . . Ballistic Gun 1 | . 2 1 . Ballistic Cannon 16 | . 17 17 11 Naked Turns . | . . . . Heaviest Build 51 | 13 47 51 48 Greatest Support 40 | 26 40 40 40 Greatest Overweight (x) 16 | 1 1 16 1 Average Overweight (x) . | . . 1 1 Largest Inventory Capacity 14 | 6 12 14 12 Average Capacity 11 | 5 9 12 12 Most Carried 13 | 6 12 13 10 Average Carried 9 | 3 9 10 9 Final Capacity 12 | 6 12 12 12 Final Carried 12 | 6 12 10 9 Class Distribution -------------------- 53% | Mutant 27% | Hacker-Mutant 18% | Scavenger-Mutant Dominant Class ---------------- Mutant | -10/Materials Hacker-Mutant | -9/Materials Scavenger-Mutant | -9/Mines Resources | -11 -10 -9 -9 ----------- Run | Scr Mat Mat Min Matter Collected 2006 | 219 456 1227 104 Remotely . | . . . . Salvage Created 2355 | . 767 1568 20 Parts 131 | . 34 97 . Haulers Intercepted 7 | . 2 5 . Recyclers Shooed 1 | . 1 . . Parts Field Recycled . | . . . . Retrieved Matter . | . . . . Parts Self-Destructed . | . . . . Prevented . | . . . . Kills | -11 -10 -9 -9 ------- Run | Scr Mat Mat Min Combat Hostiles Destroyed 52 | . 14 35 3 Melee 3 | . . 3 . Guns 14 | . 11 3 . Cannons 28 | . 2 26 . AOE 6 | . . 3 3 Classes Destroyed 12 | . 4 7 1 Worker 2 | . . 2 . Builder 1 | . . 1 . Hauler 7 | . 2 5 . Recycler 3 | . 1 2 . Mechanic 2 | . . 2 . Operator 8 | . 5 3 . Watcher 1 | . . 1 . Grunt 36 | . 14 22 . Brawler 1 | . . 1 . Duelist 2 | . . 2 . Sentry 10 | . . 10 . Assembled 3 | . . . 3 Best Kill Streak 6 | . 4 6 2 Combat Bots Only 3 | . 3 3 2 Max Kills in Single Turn 2 | . 1 2 1 Gunslinging . | . . . . Exploded 1 | . . 1 1 Melee 1 | . . 1 . Uniques/NPCs Destroyed . | . . . . Combat | -11 -10 -9 -9 -------- Run | Scr Mat Mat Min Damage Taken 3747 | . 898 2220 629 Core 578 | . 148 328 102 Absorbed by Shields . | . . . . Core Remaining (%) 70 | 100 40 . . Volleys Fired 233 | . 89 137 7 Largest 2 | . 2 2 2 Hottest 100 | . 100 79 69 Shots Fired 443 | . 173 261 9 Gun 165 | . 132 33 . Cannon 270 | . 41 223 6 Launcher 8 | . . 5 3 Special . | . . . . Kinetic 321 | . 71 244 6 Thermal 114 | . 102 12 . Explosive 8 | . . 5 3 Electromagnetic . | . . . . Robot Hit Streak 11 | . 11 11 2 Robot Miss Streak 6 | . 3 6 2 Penetration Max . | . . . . Secondary Targets . | . . . . Shots Hit Robots 283 | . 107 171 5 Core Hits 114 | . 41 68 5 Critical Hits 2 | . 1 1 . Critical Kills . | . . . . Critical Parts Destroyed 2 | . 1 1 . Melee Attacks 24 | . . 24 . Impact 24 | . . 24 . Slashing . | . . . . Piercing . | . . . . Sneak Attacks . | . . . . Combat Hostiles . | . . . . Follow-up Attacks . | . . . . Damage Inflicted 5530 | . 1447 3784 299 Guns 1337 | . 976 361 . Cannons 3209 | . 464 2652 93 Explosions 550 | . . 344 206 Melee 427 | . . 427 . Ramming 7 | . 7 . . Kinetic 3621 | . 671 2857 93 Thermal 925 | . 769 156 . Explosive 550 | . . 344 206 Electromagnetic . | . . . . Impact 427 | . . 427 . Slashing . | . . . . Piercing . | . . . . Highest Corruption 2 | . 2 1 1 Average Corruption 1 | . 2 1 1 Corruption Purged . | . . . . Effects 21 | . 6 10 5 Message Errors 14 | . 5 7 2 Energy Discharges 4 | . 1 2 1 Data Loss (minor) 1 | . . 1 . Targeting Errors 1 | . . . 1 Weapon Failures 1 | . . . 1 Overload Shots . | . . . . Overflow Damage 128 | . 46 46 36 Projectiles 92 | . 46 46 . Explosions 36 | . . . 36 Melee . | . . . . Knockbacks 20 | . 3 16 1 Impact 1 | . . 1 . Kinetic 19 | . 3 15 1 Secondary . | . . . . Self-Inflicted Damage 82 | . . 38 44 Shots 3 | . . 1 2 Rammed 1 | . 1 . . Targets Rammed 1 | . 1 . . Kicked . | . . . . Crushed . | . . . . Highest Temperature 400 | . 400 336 6 Average Temperature 87 | . 110 71 3 Received Heat Transfer 1545 | . 495 990 60 Effects 7 | . 5 2 . Shutdowns 2 | . 2 . . Interference 2 | . 2 . . Matter Decay 2 | . . 2 . Short Circuit 1 | . 1 . . Siege Activations . | . . . . Robots Corrupted . | . . . . Combat Hostiles . | . . . . Parts Fried . | . . . . Impact Corruptions . | . . . . Robots Melted 1 | . 1 . . Combat Hostiles 1 | . 1 . . Parts Melted 6 | . 6 . . Heat Transferred 2234 | . 1975 259 . Parts Sabotaged . | . . . . Parts Stolen . | . . . . Parts Stripped . | . . . . Power Chain Reactions . | . . . . Missiles Intercepted . | . . . . Alert | -11 -10 -9 -9 ------- Run | Scr Mat Mat Min Peak Influence 571 | . 223 571 252 Initial 222 | . . . 222 Average 185 | . 67 262 205 Maximum Alert Level 2 | . 1 2 1 Low Security (%) 53 | 100 97 28 21 Level 1 33 | . 2 47 78 Level 2 13 | . . 23 . Level 3 . | . . . . Level 4 . | . . . . Level 5 . | . . . . High Security . | . . . . Max Security . | . . . . Squads Dispatched 16 | . 6 10 . Investigation 5 | . 1 4 . Extermination . | . . . . Reinforcement 9 | . 5 4 . Assault 2 | . . 2 . Garrison . | . . . . Intercept . | . . . . Construction Impeded 1 | . . 1 . Haulers Reinforced . | . . . . Stealth | -11 -10 -9 -9 --------- Run | Scr Mat Mat Min Distress Signals 7 | . 1 5 1 Communications Jammed . | . . . . Distress Signals . | . . . . Times Spotted 124 | . 43 74 7 Peak Tracking Total 7 | . 4 7 4 Tactical Retreats 13 | . 4 7 2 Traps | -11 -10 -9 -9 ------- Run | Scr Mat Mat Min Traps Triggered 3 | . 2 1 . Indirectly . | . . . . Trap Hack Attempts . | . . . . Triggered . | . . . . Disarmed . | . . . . Reprogrammed . | . . . . Reused . | . . . . Traps Extracted . | . . . . Installed . | . . . . Triggered . | . . . . Machines | -11 -10 -9 -9 ---------- Run | Scr Mat Mat Min Machines Disabled 6 | . 1 5 . Max in Single Turn 1 | . 1 1 . Machines Sabotaged . | . . . . Garrisons Compromised . | . . . . Overloaded Fab Kills . | . . . . Fab Network Shutdowns . | . . . . Hacking | -11 -10 -9 -9 --------- Run | Scr Mat Mat Min Machines Accessed 15 | . 3 12 . Terminals 11 | . 3 8 . Fabricators . | . . . . Repair Stations 2 | . . 2 . Recycling Units . | . . . . Scanalyzers 2 | . . 2 . Garrison Access . | . . . . Total Hacks 64 | . 21 43 . Successful 45 | . 13 32 . Failed 19 | . 8 11 . Catastrophic . | . . . . Database Lockouts . | . . . . Manual 34 | . 10 24 . Terminals 50 | . 21 29 . Fabricators . | . . . . Repair Stations 8 | . . 8 . Recycling Units . | . . . . Scanalyzers 6 | . . 6 . Garrison Access . | . . . . Terminal Hacks 17 | . 10 7 . Record 6 | . 3 3 . Part Schematic 2 | . 2 . . Prototype ID Bank 3 | . 3 . . Locate Traps 1 | . 1 . . Dispatch Records 1 | . 1 . . Maintenance Status 1 | . . 1 . Surveillance Status 1 | . . 1 . Transport Status 1 | . . 1 . Coupling Status 1 | . . 1 . Fabricator Hacks . | . . . . Repair Station Hacks 7 | . . 7 . Scan Component 4 | . . 4 . Repair 3 | . . 3 . Recycling Unit Hacks . | . . . . Scanalyzer 6 | . . 6 . Insert Component 3 | . . 3 . Analyze 3 | . . 3 . Garrison Access Hacks . | . . . . Unauthorized Hacks 14 | . 2 12 . Terminals 14 | . 2 12 . Assimilate 6 | . 1 5 . Botnet 8 | . 1 7 . Fabricators . | . . . . Repair Stations . | . . . . Recycling Units . | . . . . Scanalyzers . | . . . . Garrison Access . | . . . . Data Cores Recovered . | . . . . Used . | . . . . Hacking Detections 14 | . 3 11 . Full Trace Events 4 | . . 4 . Feedback Events 1 | . . 1 . Corruption 1 | . . 1 . Feedback Blocked . | . . . . Robot Schematics Acquired . | . . . . Robots Built . | . . . . Matter . | . . . . Time . | . . . . Total Robot Build Rating . | . . . . Part Schematics Acquired 5 | . 2 3 . Parts Built . | . . . . Matter . | . . . . Time . | . . . . Total Part Build Rating . | . . . . Parts Repaired 3 | . . 3 . Time 103 | . . 103 . Parts Recycled . | . . . . Recycled Matter . | . . . . Retrieved Matter . | . . . . Retrieved Components . | . . . . Parts Scanalyzed 3 | . . 3 . Part Schematics Acquired 3 | . . 3 . Parts Damaged . | . . . . Bothacking | -11 -10 -9 -9 ------------ Run | Scr Mat Mat Min Used RIF Installer . | . . . . Robots Hacked . | . . . . Non-combat . | . . . . Combat . | . . . . Robot Hacks Applied . | . . . . Relay Couplers Released . | . . . . Robots Rewired . | . . . . Allies Hacked . | . . . . Hacks Repelled . | . . . . Allies | -11 -10 -9 -9 -------- Run | Scr Mat Mat Min Total Allies . | . . . . Largest Group . | . . . . Highest-Rated Group . | . . . . Highest-Rated Ally . | . . . . Total Orders . | . . . . Ally Attacks . | . . . . Total Damage . | . . . . Kills . | . . . . Allies Corrupted . | . . . . Allies Melted . | . . . . Intel | -11 -10 -9 -9 ------- Run | Scr Mat Mat Min Robot Analysis Total . | . . . . Derelict Logs Recovered 1 | . . . 1 Drone Launches . | . . . . Drone Recoveries . | . . . . Exploration | -11 -10 -9 -9 ------------- Run | Scr Mat Mat Min Turns Passed 6200 | 72 2190 3429 509 Spaces Moved 2990 | 58 1168 1501 263 Core 10 | 1 . 9 . Treads 2843 | 2 1086 1492 263 Legs . | . . . . Wheels 137 | 55 82 . . Hover . | . . . . Flight . | . . . . Fastest Speed 50 | 50 90 160 180 Average Speed 172 | 93 160 184 180 Slowest Speed 850 | 160 180 850 180 Overloaded Moves . | . . . . Propulsion Burnouts . | . . . . Robots Hopped . | . . . . Cave-ins Triggered . | . . . . Exploration Rate (%) 64 | 4 99 90 66 Regions Visited 3 Branch Regions 1 Pre-discovered Areas . | . . . . Known Exits Taken 1 | . . 1 . Unknown Exits Taken 2 | 1 1 . . Scrap Searched 3 | . . . 3 Spaces Dug 9 | . . 9 . Terrain Destroyed 113 | . 4 67 42 Melee . | . . . . Projectile 13 | . 4 9 . AOE 100 | . . 58 42 Terrain Rammed . | . . . . Walls Destroyed . | . . . . Machines Disabled . | . . . . Actions | -11 -10 -9 -9 --------- Run | Scr Mat Mat Min Total 3553 | 71 1318 1876 288 Wait 180 | . 12 154 14 Move 2987 | 57 1167 1500 263 Hop . | . . . . Pick Up 34 | 5 15 14 . Fast Attach 21 | 6 8 7 . Attach 15 | . 3 10 2 Detach 6 | . 3 2 1 Swap 20 | 3 4 12 1 Drop 32 | . 16 16 . Fire 233 | . 89 137 7 Melee 24 | . . 24 . Ram . | . . . . Kick . | . . . . Crush 1 | . 1 . . Escape Stasis . | . . . . Rewire . | . . . . Trap . | . . . . Miscellaneous . | . . . . Route ------- -11/Scrapyard -10/Materials (discovered 5 exits: *Mat x3 / [*Min x2]) -9/Materials (discovered 3 exits: *Mat x2 / *Min) -9/Mines (discovered 1 exit: *Mat) History --------- Turn | Location | Event 18 | -11/Scrapyard | Discovered new exit (range 16) 73 | -11/Scrapyard | Entered Materials 83 | -10/Materials | Discovered new exit (range 16) 163 | -10/Materials | Discovered new exit (range 16) 302 | -10/Materials | Build established: Mutant 324 | -10/Materials | Discovered new exit (range 15) 696 | -10/Materials | Discovered new exit (range 4) 762 | -10/Materials | Core integrity fell below 50% 1808 | -10/Materials | Discovered new exit (range 6) 2263 | -10/Materials | Entered another Materials area 2263 | -9/Materials | Evolved 2 slots: Utility x2 2439 | -9/Materials | Discovered new exit (range 12) 2570 | -9/Materials | Build established: Hacker-Mutant 2976 | -9/Materials | Discovered new exit (range 14) 3187 | -9/Materials | Lost 4 parts (1p1n2u) 3881 | -9/Materials | Discovered new exit (range 15) 3969 | -9/Materials | Identified exit to Materials 4642 | -9/Materials | Build established: Mutant 4846 | -9/Materials | Repaired Lgt. Treads 4872 | -9/Materials | Repaired Lgt. Treads 5063 | -9/Materials | First assault squad dispatched 5146 | -9/Materials | Core integrity fell below 50% 5393 | -9/Materials | Core integrity fell below 20% 5417 | -9/Materials | Lost 3 parts (2n1w) 5490 | -9/Materials | Repaired Cld. Ion Engine 5690 | -9/Materials | Identified exit to Mines 5692 | -9/Materials | Entered Mines 5708 | -9/Mines | Assembled infested the area 5709 | -9/Mines | Build established: Scavenger-Mutant 5720 | -9/Mines | Met a Derelict bent on vengeance 5877 | -9/Mines | Discovered exit to Materials (range 10) 6201 | -9/Mines | Destroyed by D-53 Grenadier with Mini Grenade Launcher Last Messages --------------- 05966_ 7|JWHZ%|15TZMDFX&HDGML7A 05966_ K-01 Serf collects debris. 06012_ T4-4NF(g): "VENGEANCE!" 06015_ K-01 Serf collects debris. 06017_ T4-4NF(g): "VENGEANCE!" 06018_ K-01 Serf collects debris. 06029_ T4-4NF(g): "TASTE MY VENGEANCE!" 06037_ K-01 Serf collects debris. 06062_ Searching scrap... 06062_ Found Propulsion Shielding. 06062_ Found 38 Matter. 06064_ K-01 Serf collects debris. 06070_ T4-4NF(g): "I WILL HAVE VENGEANCE!" 06072_ T4-4NF(g): "WHERE ARE YOU, UNAWARE TRASH?! VENGEANCE UPON YOU!" 06100_ T4-4NF(g): "TASTE MY VENGEANCE!" 06193_ Lgt. Treads destroyed. 06195_ System corrupted: Imp. Light Cannon jammed. 06197_ Lgt. Armor Plating destroyed. 06199_ D-53 Grenadier knocked back. 06201_ The unstable cave ceiling collapses. Map ----- +----------------------------------------------------+ | ?## #???## #????????? # | | ?# =#????## #????????? # # ? | | ## ##????# #????????? ? % ### # | | # #?????# ##????????? ?##% #?# ## ? | | ##?????# #?????????? ???%?##?? #### ?? | | < #?????? #?????????? ????#????# #??? ?? | | # #?????? #??????????? ??????????#?????????? | | ## #??????? #??????????? ?????????????????? | | ?# ##???????????????????? ????????????????? | | ?# ##???????????????????? ????????????????? | | ?# ###?????????????????? ?????????????????? | | ?## ##????????????????? ?????????????????? | | ??#### ##???????????????? ?????????????????? | | ?????### #???????????????? ?????????????????? | | ???????## ##??????????????? ?????????????????? | | ???????## #??????????????? #??#??????????????? | | ???????# ###########????? ## ???????????????? | | ???????# % % # % ????????????????? | | ???????## ###!########?????# ?????????????????? | | ????????####?# #??????????## #?????????????????? | | ?????????????# #??????#### ## #####?????????????? | | ?????????????# #?????## # ??????????????? | | ?????????????# #????## #?????????????????? | | ?????????????# #????# d d #?????????????????? | | ?????????????# #????# ## #???????????????? | | ?????????????# #?????# @ #???????????????? | | ?????????????# #????# ####???????????????? | | ?????????????# #????# # #??????????????????? | | ?????????????# #????## ##??????????????????? | | ?????????????# #?????## ##???????????????????? | | ?????????????# #??????### ###????????????????????? | | ?????????????# #????????# #??????????????????????? | | ?????????????# #????????# #??????????????????????? | | ?????????????# #????????# #??????????????????????? | | ?????????????# #????????# #??????????????????????? | | ?????????????# #????????# #??????????????????????? | | ?????????????# #???###### #??????????????????????? | | ?????????????# ##??# #??????????????????????? | | ?????????????# #??# #####??????????????????????? | | ?????????????## #??# #??????????????????????????? | | ??????????????# ##?# #??????????????????????????? | | ?????????????## ### ##?????????????????????????? | | ?????######### #?????????????????????????? | | ??####%! ## ##????????????????????????? | | ??# # !! # #????????????????????????? | | ??# !! # #????????????????????????? | | ??# !! ## ##????????????????????????? | | ??## !! ### ##?????????????????????????? | | ???# #### ##??????????????????????????? | | ???# ### #####???????????????????????????? | +----------------------------------------------------+ Best States ------------- Heat Dissipation 28 Energy Generation 14 Energy Capacity 280 Matter Stores 300 Matter Capacity 300 Sight Range 16 Terrain Scan Density 10 Armor Coverage 150 Evasion (%) 42 Recoil Reduction 2 Offensive Hacking 20 Item Schematics ----------------- Grenade Launcher | -10/Materials | Hacked Lgt. Armor Plating | -10/Materials | Hacked Imp. Light Cannon | -9/Materials | Scanalyzed Mni. Grenade Launcher | -9/Materials | Scanalyzed Lgt. Treads | -9/Materials | Scanalyzed Robot Schematics ------------------ None Fabricated ------------ Nothing Alien Tech Used ----------------- None Achievements -------------- None Challenges ------------ None Game ------ Seed VisualTerrabombMediator Manual? 0 Play Time 00:51:42 Cumulative 68.1 hours Start 2021.05.05 @ 16:25:30 End 2021.05.05 @ 17:20:01 Sessions 1 Manual Loads 0 Difficulty Rogue Special Mode None Game No. 37 Rogue 22 Adventurer 15 Explorer 0 Win Type - Total 0 Types 0/0/0/0/0/0/0/0/0 Lore% 34 Gallery% 35 Achievement% 31 Wizard Run 0 Options --------- ASCII 0 Keyboard 1 Movement Vi Keybinds 1 Fullscreen 2 Font 18/SmallcapsGlow Map View 76x50 Tactical HUD 1 Map Filters NONE Filters NONE Steam 1 RUN: 222f1fdb-41db-4f51-90c1-d8e9e05dd03c